Cogmind - Beta 13 @@@ ROGUE MODE // 2024.04.10 @ 17:10:54 Player: Kinga Result: Destroyed by Autobeam Turret with Autobeam Performance ------------- Evolutions (0) 0 Regions Visited (3) 600 Robots Destroyed (24) 120 Value Destroyed (377) 377 Prototype IDs (1) 20 Alien Tech Used (0) 0 Bonus (0) 0 TOTAL SCORE: 1117 Bonus ------- None Cogmind --------- Core Integrity 0/250 Matter 268/300 Energy 125/125 System Corruption 0% Temperature Cool (6) Movement Treading (240) Ox1 Location -10/Subcaves Parts ------- > --- POWER (1) -------- Light Ion Engine > --- PROPULSION (2) --- Light Treads > --- UTILITY (2) ------ Large Storage Unit Experimental Sensor Array > --- WEAPON (2) ------- Small Laser Light Assault Rifle > --- INVENTORY (15) --- Wheel Small Storage Unit Structural Scanner Structural Scanner EM Pulse Gun Rocket Launcher Peak State ------------ > --- POWER ------------ Light Ion Engine > --- PROPULSION ------- Light Treads Light Treads > --- UTILITY ---------- Large Storage Unit Experimental Sensor Array > --- WEAPON ----------- Light Assault Rifle Light Assault Rifle > --- INVENTORY -------- Light Treads Wheel Small Storage Unit Structural Scanner Structural Scanner EM Pulse Gun Small Laser Light Assault Rifle Rocket Launcher [Rating: 16] Favorites ----------- Power Light Ion Engine Engine Light Ion Engine Propulsion Light Treads Treads Light Treads Utility Large Storage Unit Device Heat Sink Storage Large Storage Unit Processor Signal Interpreter Weapon Light Assault Rifle Energy Gun Small Laser Ballistic Gun Light Assault Rifle Build | -11 -10 -10 -10 ------- Run | Yrd Mat Min Sub Slots Evolved . | . . . . Power . | . . . . Propulsion . | . . . . Utility . | . . . . Weapon . | . . . . Parts Attached 20 | 6 10 1 3 Power 3 | 1 2 . . Engine 3 | 1 2 . . Core . | . . . . Reactor . | . . . . Propulsion 3 | 2 . . 1 Treads 3 | 2 . . 1 Leg . | . . . . Wheel . | . . . . Hover . | . . . . Flight . | . . . . Utility 7 | 1 5 1 . Device 4 | . 3 1 . Storage 2 | 1 1 . . Processor 1 | . 1 . . Hackware . | . . . . Protection . | . . . . Artifact . | . . . . Weapon 7 | 2 3 . 2 Energy Gun 4 | 2 1 . 1 Energy Cannon . | . . . . Ballistic Gun 3 | . 2 . 1 Ballistic Cannon . | . . . . Launcher . | . . . . Special Weapon . | . . . . Impact Weapon . | . . . . Slashing Weapon . | . . . . Piercing Weapon . | . . . . Special Melee Weapon . | . . . . Unidentified Prototypes 1 | . . 1 . Parts Lost 7 | . 3 . 4 Power 2 | . 2 . . Propulsion 2 | . . . 2 Utility . | . . . . Weapon 3 | . 1 . 2 Highest Loss Streak 4 | . 2 . 4 To Critical Strikes . | . . . . Average Slot Usage (%) 97 | . 96 100 94 Engine 13 | . 13 14 14 Treads 27 | . 28 28 22 Device 7 | . 6 9 14 Storage 14 | . 14 14 14 Processor 4 | . 4 4 . Energy Gun 11 | . 16 . 1 Ballistic Gun 16 | . 11 28 26 Naked Turns . | . . . . Heaviest Build 26 | 13 26 26 26 Greatest Support 40 | 40 40 40 40 Greatest Overweight (x) 1 | . . . 1 Average Overweight (x) . | . . . . Largest Inventory Capacity 15 | 8 15 15 15 Average Capacity 11 | 7 10 15 15 Most Carried 9 | 3 7 9 9 Average Carried 5 | 1 5 8 8 Final Capacity 15 | 8 15 15 15 Final Carried 9 | 3 7 9 6 Class Distribution -------------------- 100% | Mutant Dominant Class ---------------- Mutant | -10/Materials Mutant | -10/Mines Mutant | -10/Subcaves Resources | -11 -10 -10 -10 ----------- Run | Yrd Mat Min Sub Matter Collected 388 | 220 158 10 . Remotely . | . . . . Salvage Created 552 | . 510 . 42 Parts 55 | . 49 . 6 Haulers Intercepted 1 | . 1 . . Recyclers Shooed . | . . . . Parts Field Recycled . | . . . . Retrieved Matter . | . . . . Parts Self-Destructed 6 | . . . 6 Prevented . | . . . . Kills | -11 -10 -10 -10 ------- Run | Yrd Mat Min Sub Combat Hostiles Destroyed 17 | . 14 . 3 Guns 17 | . 14 . 3 Classes Destroyed 7 | . 7 . . Worker 1 | . 1 . . Builder 1 | . 1 . . Tunneler 1 | . 1 . . Hauler 1 | . 1 . . Watcher 3 | . 3 . . Swarmer 11 | . 8 . 3 Grunt 6 | . 6 . . Best Kill Streak 5 | . 5 . 3 Combat Bots Only 4 | . 4 . 3 Max Kills in Single Turn 2 | . 2 . 2 Gunslinging . | . . . . Exploded . | . . . . Melee . | . . . . Uniques/NPCs Destroyed . | . . . . Combat | -11 -10 -10 -10 -------- Run | Yrd Mat Min Sub Hostile Shots Fired 169 | . 108 . 61 Missed 49 | . 28 . 21 Damage Taken 1093 | . 775 . 318 Core 252 | . 178 . 74 Absorbed by Shields . | . . . . Core Remaining (%) 100 | 100 . . . Volleys Fired 77 | . 67 . 10 Largest 2 | . 2 . 2 Hottest 90 | . 90 . 60 Shots Fired 144 | . 124 . 20 Gun 144 | . 124 . 20 Cannon . | . . . . Launcher . | . . . . Special . | . . . . Kinetic 49 | . 32 . 17 Thermal 95 | . 92 . 3 Explosive . | . . . . Electromagnetic . | . . . . Robot Hit Streak 23 | . 23 . 3 Robot Miss Streak 6 | . 3 . 6 Penetration Max . | . . . . Secondary Targets 3 | . 2 . 1 Max Gunslinging Chain 1 | . 1 . 1 Shots Hit Robots 87 | . 80 . 7 Core Hits 38 | . 34 . 4 Critical Kills . | . . . . Critical Parts Destroyed . | . . . . Critical Strikes 3 | . 3 . . Burn 3 | . 3 . . Melee Attacks . | . . . . Impact . | . . . . Slashing . | . . . . Piercing . | . . . . Sneak Attacks . | . . . . Combat Hostiles . | . . . . Follow-up Attacks . | . . . . Damage Inflicted 949 | . 871 6 72 Guns 939 | . 867 . 72 Cannons . | . . . . Explosions . | . . . . Melee . | . . . . Ramming 10 | . 4 6 . Kinetic 207 | . 159 . 48 Thermal 732 | . 708 . 24 Explosive . | . . . . Electromagnetic . | . . . . Impact . | . . . . Slashing . | . . . . Piercing . | . . . . Highest Corruption . | . . . . Average Corruption . | . . . . Corruption Purged . | . . . . Corruption Blocked . | . . . . Overload Shots . | . . . . Overflow Damage . | . . . . Projectiles . | . . . . Explosions . | . . . . Melee . | . . . . Knockbacks . | . . . . Impact . | . . . . Kinetic . | . . . . Secondary . | . . . . Self-Inflicted Damage . | . . . . Shots . | . . . . Rammed 4 | . 1 3 . Targets Rammed 5 | . 2 3 . Kicked . | . . . . Crushed 1 | . 1 . . Highest Temperature 288 | . 288 . . Average Temperature 127 | . 127 . . Received Heat Transfer 375 | . 297 . 78 Effects 4 | . 4 . . Interference 4 | . 4 . . Siege Activations . | . . . . Robots Corrupted . | . . . . Combat Hostiles . | . . . . Parts Fried . | . . . . Impact Corruptions . | . . . . Robots Melted . | . . . . Combat Hostiles . | . . . . Parts Melted 1 | . 1 . . Heat Transferred 2026 | . 1976 . 50 Parts Sabotaged . | . . . . Parts Stolen . | . . . . Parts Stripped . | . . . . Power Chain Reactions . | . . . . Alert | -11 -10 -10 -10 ------- Run | Yrd Mat Min Sub Peak Influence 233 | . 233 54 . Initial 54 | . . 54 . Average 80 | . 100 50 . Maximum Alert Level 1 | . 1 . . Low Security (%) 88 | 100 82 100 . Level 1 11 | . 17 . . Level 2 . | . . . . Level 3 . | . . . . Level 4 . | . . . . Level 5 . | . . . . High Security . | . . . . Max Security . | . . . . Squads Dispatched 2 | . 2 . . Investigation 2 | . 2 . . Extermination . | . . . . Reinforcement . | . . . . Assault . | . . . . Garrison . | . . . . Intercept . | . . . . Searches Triggered . | . . . . Construction Impeded . | . . . . Haulers Reinforced . | . . . . Active Scanning Responses . | . . . . Cargo Convoy Interrupts . | . . . . Stealth | -11 -10 -10 -10 --------- Run | Yrd Mat Min Sub Distress Signals 1 | . 1 . . Communications Jammed . | . . . . Distress Signals . | . . . . Times Spotted 27 | . 23 . 4 Peak Tracking Total 6 | . 4 . 6 Tactical Retreats 3 | . 1 . 2 Traps | -11 -10 -10 -10 ------- Run | Yrd Mat Min Sub Traps Triggered . | . . . . Indirectly . | . . . . Trap Hack Attempts . | . . . . Triggered . | . . . . Disarmed . | . . . . Reprogrammed . | . . . . Reused . | . . . . Traps Extracted . | . . . . Installed . | . . . . Triggered . | . . . . Machines | -11 -10 -10 -10 ---------- Run | Yrd Mat Min Sub Machines Disabled . | . . . . Max in Single Turn . | . . . . Machines Repaired . | . . . . Machines Dismantled . | . . . . Machines Sabotaged . | . . . . Overloaded Fab Kills . | . . . . Hacking | -11 -10 -10 -10 --------- Run | Yrd Mat Min Sub Machines Accessed 9 | . 8 1 . Terminals 8 | . 8 . . Fabricators . | . . . . Repair Stations . | . . . . Recycling Units . | . . . . Scanalyzers . | . . . . Garrison Access . | . . . . Total Hacks 26 | . 25 1 . Successful 12 | . 11 1 . Failed 14 | . 14 . . Catastrophic 3 | . 3 . . Database Lockouts . | . . . . Manual 24 | . 24 . . Terminals 25 | . 25 . . Fabricators . | . . . . Repair Stations . | . . . . Recycling Units . | . . . . Scanalyzers . | . . . . Garrison Access . | . . . . Terminal Hacks 7 | . 6 1 . Robot Analysis 1 | . 1 . . Open Door 1 | . . 1 . Terminal Index 1 | . 1 . . Unreport Threat 2 | . 2 . . Transport Status 1 | . 1 . . Hauler Manifests 1 | . 1 . . Fabricator Hacks . | . . . . Repair Station Hacks . | . . . . Recycling Unit Hacks . | . . . . Scanalyzer . | . . . . Garrison Access Hacks . | . . . . Unauthorized Hacks 5 | . 5 . . Terminals 5 | . 5 . . Botnet 5 | . 5 . . Fabricators . | . . . . Repair Stations . | . . . . Recycling Units . | . . . . Scanalyzers . | . . . . Garrison Access . | . . . . Data Cores Recovered . | . . . . Used . | . . . . Hacking Detections 7 | . 7 . . Full Trace Events 5 | . 5 . . Feedback Events . | . . . . Feedback Blocked . | . . . . Robot Schematics Acquired . | . . . . Robots Built . | . . . . Authchips . | . . . . Time . | . . . . Total Robot Build Rating . | . . . . Part Schematics Acquired . | . . . . Parts Built . | . . . . Authchips . | . . . . Time . | . . . . Total Part Build Rating . | . . . . Parts Repaired . | . . . . Time . | . . . . Parts Recycled . | . . . . Recycled Matter . | . . . . Retrieved Matter . | . . . . Retrieved Components . | . . . . Parts Scanalyzed . | . . . . Part Schematics Acquired . | . . . . Parts Damaged . | . . . . Bothacking | -11 -10 -10 -10 ------------ Run | Yrd Mat Min Sub Used RIF Installer . | . . . . Robots Hacked . | . . . . Non-combat . | . . . . Combat . | . . . . Robot Hacks Applied . | . . . . Relay Couplers Released . | . . . . Fabnet Peak Effective % . | . . . . Robots Rewired . | . . . . Allies Hacked . | . . . . Hacks Repelled . | . . . . Allies | -11 -10 -10 -10 -------- Run | Yrd Mat Min Sub Total Allies . | . . . . Largest Group . | . . . . Highest-Rated Group . | . . . . Highest-Rated Ally . | . . . . Total Orders . | . . . . Ally Attacks . | . . . . Total Damage . | . . . . Kills . | . . . . Allies Corrupted . | . . . . Allies Melted . | . . . . Intel | -11 -10 -10 -10 ------- Run | Yrd Mat Min Sub Robot Analysis Total 1 | . 1 . . Derelict Logs Recovered 1 | . . 1 . Drone Launches . | . . . . Drone Recoveries . | . . . . Exploration | -11 -10 -10 -10 ------------- Run | Yrd Mat Min Sub Turns Passed 1584 | 80 992 430 82 Spaces Moved 817 | 50 472 263 32 Core 10 | 10 . . . Treads 807 | 40 472 263 32 Legs . | . . . . Wheels . | . . . . Hover . | . . . . Flight . | . . . . Fastest Speed 50 | 50 160 160 160 Average Speed 158 | 138 160 160 165 Slowest Speed 240 | 160 160 160 240 Overloaded Moves . | . . . . Propulsion Burnouts . | . . . . Robots Hopped . | . . . . Cave-ins Triggered . | . . . . Exploration Rate (%) 38 | 3 79 67 4 Regions Visited 3 Branch Regions 2 Pre-discovered Areas 1 | . . 1 . Known Exits Taken 1 | . 1 . . Unknown Exits Taken 2 | 1 . 1 . Scrap Searched 1 | . . 1 . Spaces Dug . | . . . . Terrain Destroyed . | . . . . Melee . | . . . . Projectile . | . . . . AOE . | . . . . Terrain Rammed . | . . . . Walls Destroyed . | . . . . Machines Disabled . | . . . . Actions | -11 -10 -10 -10 --------- Run | Yrd Mat Min Sub Total 964 | 58 590 271 45 Wait 30 | . 28 2 . Move 814 | 49 471 262 32 Hop . | . . . . Pick Up 12 | 3 7 2 . Fast Attach 12 | 6 5 1 . Attach 7 | . 4 . 3 Detach . | . . . . Swap 1 | . 1 . . Drop 6 | . 5 1 . Fire 77 | . 67 . 10 Melee . | . . . . Ram . | . . . . Kick . | . . . . Crush 5 | . 2 3 . Escape Stasis . | . . . . Rewire . | . . . . Trap . | . . . . Miscellaneous . | . . . . Route ------- -11/Scrapyard -10/Materials (discovered 4 exits: *Mat x2 / *Min x2) -10/Mines (discovered 2 exits: *Mat / [*Sub]) -10/Subcaves History --------- Turn | Location | Event 5 | -11/Scrapyard | Discovered new exit (range 14) 81 | -11/Scrapyard | Entered Materials 194 | -10/Materials | Discovered new exit (range 16) 228 | -10/Materials | Discovered new exit (range 13) 307 | -10/Materials | Build established: Mutant 509 | -10/Materials | Discovered new exit (range 4) 667 | -10/Materials | Core integrity fell below 50% 729 | -10/Materials | Discovered new exit (range 12) 800 | -10/Materials | Identified exit to Mines 1073 | -10/Materials | Entered Mines 1073 | -10/Mines | Discovered new exit (range 10) 1074 | -10/Mines | Assembled infested the area 1086 | -10/Mines | Identified exit to Materials 1098 | -10/Mines | Found the Drone Emporium 1172 | -10/Mines | Received a Rocket Launcher from a helpful Derelict 1210 | -10/Mines | Found a damaged Exp. Sensor Array with a note attached 1214 | -10/Mines | Found Prototype Device 1214 | -10/Mines | Identified Exp. Sensor Array 1402 | -10/Mines | Learned 2 Materials zone layouts 1489 | -10/Mines | Discovered new exit (range 10) 1493 | -10/Mines | Learned location of Storage (-7) 1503 | -10/Mines | Entered Subcaves 1562 | -10/Subcaves | Core integrity fell below 20% 1585 | -10/Subcaves | Destroyed by Autobeam Turret with Autobeam Last Messages --------------- 01495_ QN-RAW(g) slips back into the shadows. LOCATION=UNKNOWN AMBIENT_HEAT=-10 GOAL=ESCAPE 01550_ Lgt. Treads destroyed. 01552_ S-10 Pest destroyed. 01553_ Subatomizers dissect the Lgt. Assault Rifle. 01559_ Lgt. Assault Rifle fries itself beyond repair. 01563_ Subatomizers dissect the Lgt. Ion Engine. 01566_ Lgt. Assault Rifle destroyed. 01571_ S-10 Pest destroyed. 01571_ Switching to secondary target: S-10 Pest. 01571_ S-10 Pest destroyed. 01572_ Lgt. Assault Rifle destroyed. 01579_ Lgt. Assault Rifle fries itself beyond repair. 01580_ Flight Unit fries itself beyond repair. 01581_ S-10 Pest destroyed. 01582_ Lgt. Ion Engine fries itself beyond repair. 01583_ Subatomizers dissect the Flight Unit. 01585_ Lgt. Assault Rifle fries itself beyond repair. Map ----- +----------------------------------------------------+ | ??????????# ###??????????????????????????????? | | ??????????# #????????????????????????????????? | | ??????????# #????????????????????????????????? | | ??????????# #????????????????????????????????? | | ??????????# ##???????????????????????????????? | | ??????????## #???????????????????????????????? | | ???????????## ##???????????????????????????????? | | ???????????## #????????????????????????????????? | | ??????????## #?????#??????????????????????????? | | ??????????# ##??? ??????????????????????????? | | ??????????# ##?? ??????????????????????????? | | ??????????## ##?# ##????????????????????????? | | ???????????# ##? #????????????????????????? | | ???????????# #? ##???????????????????????? | | ???????????# ## #? ##??????????????????????? | | ???????????## ### ### #??????????????????????? | | ????????????####?## # #???????????????????????? | | ??????????????????# "#???????????????????????? | | ??????????????????# "##??????????????????????? | | ??????????????????## " ##?????????????????????? | | ??????????????????## ""#?????????????????????? | | ?????????????????## #?????????????????????? | | ?????????????????# #?????????????????????? | | ?????????????????# #?????????????????????? | | ?????????????????## ##????????????????????? | | ??????????????????#### @ #????????????????????? | | ?????????????????????### % ???????????????? | | ???????????????????????#$ % %= ??????????? | | ??????????????????????? = % ?????????? | | ?????????????????????? ######## ?????????? | | ????????????????????? #???????????????????? | | ?????????????????????# ???????????????????? | | ?????????????????????## ## ??????????????????? | | ??????????????????????## ##? ?????????????????? | | ???????????????????????####?? ?????????????????? | | ?????????????????????????????? ##????????????????? | | ?????????????????????????????? ?????????????????? | | ??????????????????????????????? ?????????????????? | | ???????????????????????????????? ????????????????? | | ?????????????????????????????????????????????????? | | ?????????????????????????????????????????????????? | | ?????????????????????????????????????????????????? | | ?????????????????????????????????????????????????? | | ?????????????????????????????????????????????????? | | ?????????????????????????????????????????????????? | | ?????????????????????????????????????????????????? | | ?????????????????????????????????????????????????? | | ?????????????????????????????????????????????????? | | ?????????????????????????????????????????????????? | | ?????????????????????????????????????????????????? | +----------------------------------------------------+ Best States ------------- Heat Dissipation 35 Energy Generation 10 Energy Capacity 250 Matter Stores 300 Matter Capacity 300 Sight Range 16 Robot Scan Range 20 Terrain Scan Density 10 Evasion (%) 40 Recoil Reduction 2 Item Schematics ----------------- None Robot Schematics ------------------ None Fabricated ------------ Nothing Alien Tech Used ----------------- None Achievements -------------- None Challenges ------------ None Game ------ Seed MicrowarpForceDetonator Manual? 0 Play Time 00:11:51 Cumulative 19.4 hours Start 2024.04.10 @ 16:59:28 End 2024.04.10 @ 17:10:54 Sessions 1 Manual Loads 0 Difficulty Rogue Special Mode None Game No. 31 Rogue 31 Adventurer 0 Explorer 0 Win Type - Total 1 Types 1/0/0/0/0/0/0/0/0 Lore% 16 Gallery% 33 Achievement% 30 Wizard Run 0 Options --------- Layout 0 ASCII 0 Keyboard 0 Movement Numpad Keybinds 0 Fullscreen 2 Font 18/SmallcapsGlow Map View 76x50 Zoom Use 0% Tactical HUD 1 Map Filters NONE Filters NONE Steam 1 RUN: 1862dd05-0ced-4440-8d69-5c0d84a9cce7